bitfinex-derivatives/quotes_ETHF0:USTF0_20210111
["timestamp","ask_amount","ask_price","bid_price","bid_amount"]
[1610369703436,4.00959,1080.0,1078.6,0.56416032]
[1610369703836,4.00959,1078.7,1078.4,0.84630933]
[1610369704238,4.00959,1078.7,1078.5,0.84617078]
[1610369704437,3.4036,1080.1,1078.5,2.99067078]
[1610369704739,3.4036,1080.1,1078.6,0.8461861]
[1610369704740,51.9589,1079.4,1078.6,0.8461861]
[1610369705537,51.9589,1079.4,1078.5,2.99078263]
[1610369705737,4.00959,1078.6,1078.5,2.99078263]
[1610369706440,4.00959,1078.6,1078.5,2.1445]
[1610369707440,4.00959,1078.6,1078.5,1.4306]
[1610369708040,4.00959,1078.6,1078.5,0.3155]
[1610369708245,4.00959,1078.6,1077.7,74.92492659]
[1610369709842,4.00959,1077.8,1077.7,74.92492659]
[1610369710244,4.00959,1077.8,1077.7,72.2282]
[1610369710442,4.00959,1077.8,1077.5,0.84711237]
[1610369710644,4.00959,1077.8,1077.2,0.84729316]
[1610369710844,4.00959,1077.8,1076.9,0.84752685]
[1610369711245,4.00959,1077.8,1076.5,0.84787803]
[1610369711845,4.00959,1076.6,1076.5,0.84787803]
[1610369712248,4.00959,1076.6,1076.1,0.84828746]
[1610369712449,4.00959,1076.6,1075.8,0.84843993]
[1610369712852,4.00959,1076.6,1075.6,0.84840173]
[1610369713052,4.00959,1076.6,1075.4,0.84857825]
[1610369713454,4.00959,1076.6,1075.2,0.84861409]
[1610369713853,3.6779,1076.8,1075.4,0.28294707]
[1610369714052,3.6779,1076.8,1075.7,65.1679]
[1610369715059,3.6779,1076.8,1075.7,67.4814]
[1610369715254,1.8372,1076.8,1075.7,67.4814]
[1610369715459,15.70095579,1077.1,1075.7,2.3135]
[1610369715654,1.8829,1077.2,1075.7,2.3135]
[1610369715855,4.00959,1076.3,1075.9,4.00959]
[1610369716054,4.00959,1076.3,1075.7,2.3135]
[1610369716255,13.83501611,1077.4,1075.7,2.3135]
[1610369716656,2.4375,1077.5,1075.7,2.3135]
[1610369716855,13.85516733,1077.6,1075.7,2.3135]
[1610369717055,15.73826629,1077.8,1075.8,0.28296925]
[1610369717456,13.87034559,1077.9,1075.9,0.28297901]
[1610369717857,4.00959,1077.1,1076.3,4.00959]
[1610369718058,15.98763068,1078.0,1076.3,4.00959]
[1610369718256,13.87883068,1078.0,1076.3,4.00959]
[1610369718457,13.90744775,1078.2,1076.3,6.45089]
[1610369718656,16.01912952,1078.3,1076.3,7.0164831]
[1610369718857,16.01912952,1078.3,1076.4,0.28279655]
[1610369719057,2.1005,1078.3,1076.5,0.28272123]
[1610369719257,13.92934203,1078.5,1076.5,0.84820054]
[1610369719457,13.94066663,1078.6,1076.6,0.28273965]
[1610369719657,13.94648919,1078.7,1076.7,0.28268424]
[1610369719857,4.00959,1077.0,1076.8,4.00959]
[1610369720057,4.00959,1077.0,1076.8,4.29227421]
[1610369720261,1.9673,1078.6,1076.8,0.28268421]
[1610369720662,15.89322337,1078.6,1076.7,1.69578171]
[1610369721060,13.92395248,1078.5,1076.3,0.00957282]
[1610369721260,15.77455248,1078.5,1076.3,0.00957282]
[1610369721462,11.75694027,1077.8,1076.0,6.101]
[1610369721663,11.74319186,1077.5,1075.7,2.3135]
[1610369721861,4.00959,1075.8,1075.4,1.8811]
[1610369722062,4.00959,1075.8,1074.9,1.41534233]
[1610369722261,4.00959,1075.8,1074.5,3.68043042]
[1610369722462,4.00959,1075.8,1074.5,1.41588269]
[1610369722661,4.00959,1075.8,1074.3,1.41640527]
[1610369722662,6.01499,1075.8,1074.3,1.41640527]
[1610369723264,6.01499,1075.8,1074.1,1.41653789]
[1610369723464,6.01499,1075.8,1075.2,55.2175]
[1610369723662,6.01499,1075.8,1075.2,54.3667]
[1610369723863,4.00959,1075.3,1073.5,1.41711592]
[1610369724063,59.9236,1075.2,1073.5,1.41711592]
[1610369724264,59.9236,1075.2,1073.3,3.02532767]
[1610369724465,59.9236,1075.2,1073.3,1.6078]
[1610369724764,59.9236,1075.2,1073.2,55.5381]
[1610369725164,71.57479692,1075.2,1073.2,55.5381]
[1610369725366,73.41249692,1075.2,1073.2,55.5381]
[1610369725564,73.41249692,1075.2,1072.7,1.70153086]
[1610369725565,73.8547,1074.5,1072.7,1.4178765]
[1610369725767,4.00959,1073.1,1072.7,5.4274665]
[1610369725965,4.00959,1073.1,1072.7,4.00959]
[1610369726365,4.00959,1073.1,1072.3,1.41858333]
[1610369726967,5.87749,1073.1,1072.2,1.41867228]
[1610369727367,5.87749,1073.1,1072.0,56.43523191]
[1610369727567,5.87749,1073.1,1072.0,55.0163]
[1610369727767,4.00959,1072.1,1071.9,1.4192275]
[1610369727968,4.00959,1072.1,1071.8,1.41950545]
[1610369728368,2.2315,1072.9,1071.8,1.41950545]
[1610369728567,2.2315,1072.9,1071.8,1.8406]
[1610369729870,4.00959,1072.2,1071.8,1.8406]
[1610369730069,5.88319,1072.2,1071.8,1.8406]
[1610369730669,4.00959,1072.2,1071.8,1.8406]
[1610369731470,4.00959,1072.2,1071.8,2.1246698]
[1610369731672,5.88509,1072.2,1071.8,1.8406]
[1610369731870,4.00959,1071.9,1071.8,1.8406]
[1610369732974,5.90059,1071.9,1071.7,0.28407911]
[1610369733173,5.90059,1071.9,1071.4,1.13643624]
[1610369733375,5.90059,1071.9,1071.4,0.28415858]
[1610369733576,5.90059,1071.9,1071.3,0.28417366]
[1610369733774,4.00959,1071.4,1071.3,0.28417366]
[1610369733975,4.00959,1071.4,1071.1,0.85252097]
[1610369733976,4.00959,1071.4,1071.1,0.5683824]
[1610369734173,4.00959,1071.4,1070.9,0.85923842]
[1610369734374,4.00959,1071.4,1070.7,0.85289996]
[1610369734576,4.00959,1071.4,1070.6,1.13719994]
[1610369734774,4.00959,1071.4,1070.5,6.92716303]
[1610369734973,5.88599,1071.4,1070.5,6.92716303]
[1610369735176,4.00959,1071.4,1070.5,6.92716303]
[1610369735375,4.00959,1071.4,1070.5,6.0742]
[1610369735775,2.2483,1071.5,1070.5,6.0742]
[1610369735776,4.00959,1070.8,1070.5,6.0742]
[1610369737778,7.84409,1070.8,1070.5,4.2368]
[1610369737983,4.00959,1070.6,1070.5,2.3668]
[1610369738179,4.00959,1070.6,1069.6,0.85351803]
[1610369738381,4.00959,1070.6,1069.2,0.85393978]
[1610369738583,4.00959,1070.6,1068.8,0.85413579]
[1610369738980,0.4,1069.6,1068.6,0.85447887]
[1610369739180,0.4,1069.6,1068.4,0.85462815]
[1610369739580,0.4,1069.6,1068.3,1.89293212]
[1610369739781,4.00959,1068.4,1068.3,1.89293212]
[1610369740081,4.00959,1068.4,1068.3,1.03813074]
[1610369740681,4.00959,1068.4,1046.1,68.519]
[1610369740682,4.00959,1068.4,1068.0,0.85492834]
[1610369740884,4.00959,1068.4,1067.8,0.76408326]
[1610369741083,5.85539,1068.4,1067.8,0.76408326]
[1610369741282,5.85539,1068.4,1067.8,0.65218326]
[1610369741684,4.00959,1068.4,1067.5,1.42517528]
[1610369741885,4.00959,1067.6,1067.5,1.42517528]
[1610369742084,4.00959,1067.6,1066.9,1.71047647]
[1610369742286,4.00959,1067.6,1066.7,4.00959]
[1610369742485,4.00959,1067.6,1066.6,1.71091709]
[1610369742686,4.00959,1067.6,1066.5,1.71121637]
[1610369742886,6.12319,1067.6,1066.5,1.71121637]
[1610369743088,6.12319,1067.6,1066.4,1.71151035]
[1610369743490,6.12319,1067.6,1066.3,1.71147932]
[1610369743691,6.12319,1067.6,1066.9,0.28526212]
[1610369743891,4.00959,1067.0,1066.9,0.28526212]
[1610369744089,5.75109,1067.0,1066.8,0.28526325]
[1610369744491,5.75109,1067.0,1066.8,6.325e-05]
[1610369745290,1.7415,1067.0,1066.8,6.325e-05]
[1610369745490,62.3614,1067.9,1066.8,6.325e-05]
[1610369745692,0.4,1066.9,1066.8,6.325e-05]
[1610369745893,0.4,1066.9,1066.8,4.00965325]
[1610369746092,62.3614,1067.9,1066.8,5.87585325]
[1610369746294,62.3614,1067.9,1066.8,5.87579]
[1610369746493,1.8666,1068.7,1066.8,5.87579]
[1610369746693,1.8666,1068.7,1067.4,0.57020608]
[1610369746995,1.855,1069.0,1067.7,0.56996623]
[1610369747200,1.855,1069.0,1067.7,2.10406623]
[1610369747395,1.855,1069.0,1068.1,0.5699067]
[1610369747596,6.3128,1069.9,1068.3,0.56977644]
[1610369748001,6.3128,1069.9,1069.5,4.00959]
[1610369748199,6.3128,1069.9,1069.5,6.04529]
[1610369748601,6.3128,1069.9,1069.6,5.0]
[1610369748798,14.32563098,1071.1,1069.6,5.0]
[1610369749196,5.22225401,1071.3,1069.6,5.0]
[1610369749395,15.65632795,1072.0,1069.6,5.0]
[1610369749396,5.22527735,1071.4,1069.7,0.56918283]
[1610369749595,4.84147735,1071.4,1069.7,0.56918283]
[1610369749795,9.41326885,1071.9,1069.7,1.13803733]
[1610369749995,9.25426885,1071.9,1071.8,4.00959]
[1610369750196,13.60298534,1072.4,1071.8,4.00959]
[1610369750397,13.62051301,1072.7,1071.8,4.00959]
[1610369750797,13.65133063,1072.8,1071.8,4.00959]
[1610369751198,13.66567451,1072.9,1071.8,4.00959]
[1610369751399,13.66974601,1073.0,1071.8,4.00959]
[1610369751798,19.97048397,1073.6,1071.8,4.00959]
[1610369751799,13.67293954,1073.1,1071.8,4.00959]
[1610369751998,4.00959,1072.5,1071.7,1.7198]
[1610369752803,4.00959,1072.5,1071.7,0.7659]
[1610369753001,4.00959,1072.5,1070.5,1.42168688]
[1610369753002,7.3533225,1072.3,1070.4,0.85295309]
[1610369753402,7.35237081,1072.2,1070.3,0.85303987]
[1610369753602,7.34522093,1072.1,1070.2,0.85310802]
[1610369754003,4.00959,1070.6,1070.1,4.00959]
[1610369754201,4.00959,1070.6,1069.9,0.85327363]
[1610369754401,4.00959,1070.6,1069.7,0.85342288]
[1610369754602,4.00959,1070.6,1069.7,0.2845404]
[1610369754802,5.53769,1070.6,1069.7,0.2845404]
[1610369755005,5.53769,1070.6,1069.6,3.6115404]
[1610369755603,12.8296546,1070.6,1069.6,3.6115404]
[1610369756003,4.00959,1069.7,1069.6,3.6115404]
[1610369756605,4.00959,1069.7,1069.6,3.4333404]
[1610369757203,4.00959,1069.7,1069.6,3.2434404]
[1610369759716,2.0341,1070.2,1069.6,3.2434404]
[1610369759907,2.0341,1070.2,1069.9,4.00959]
[1610369760331,1.5281,1070.6,1069.9,4.00959]
[1610369760526,5.17903293,1071.1,1069.9,4.00959]
[1610369760723,3.36833293,1071.1,1069.9,4.00959]
[1610369760914,9.10730557,1071.4,1070.0,65.2961]
[1610369761318,13.22985574,1071.5,1070.0,65.2961]
[1610369761319,5.9736,1071.5,1070.0,66.14961953]
[1610369761521,7.28673671,1072.5,1070.5,0.85336134]
[1610369761726,7.28673671,1072.5,1070.5,2.58476134]
[1610369761915,7.2935525,1072.7,1072.4,4.00959]
[1610369762117,7.2935525,1072.7,1072.4,5.90689]
[1610369762316,7.29632623,1072.9,1072.4,5.90689]
[1610369762727,7.30030179,1073.1,1072.4,5.90689]
[1610369763119,7.30752083,1073.3,1072.4,5.90689]
[1610369763320,16.40748789,1073.6,1072.4,5.90689]
[1610369763521,14.56298789,1073.6,1072.4,5.90689]
[1610369763920,70.079,1073.7,1073.5,4.00959]
[1610369764118,70.079,1073.7,1073.5,5.96119]
[1610369764518,70.079,1073.7,1073.5,1.9516]
[1610369765118,77.37678314,1073.7,1072.4,1.8973]
[1610369765318,7.28539264,1073.4,1072.4,1.8973]
[1610369765721,9.36544764,1073.5,1072.4,1.8973]
[1610369765722,7.28827409,1073.5,1072.4,1.8973]
[1610369765924,4.00959,1072.5,1072.4,1.8973]
[1610369766522,1.6797,1073.0,1071.7,4.00959]
[1610369766724,1.6797,1073.0,1071.7,5.86469]
[1610369767325,1.6797,1073.0,1072.0,0.28399281]
[1610369767525,7.29070752,1073.7,1072.0,2.33609281]
[1610369767729,64.63732965,1073.9,1072.2,0.28393883]
[1610369767928,57.34,1073.9,1073.8,4.00959]
[1610369768126,7.30442442,1074.0,1073.8,4.00959]
[1610369768327,7.32531609,1074.3,1073.8,4.00959]
[1610369769128,9.4337978,1074.5,1073.8,4.00959]
[1610369769129,7.34093665,1074.4,1073.8,4.00959]
[1610369769328,18.8817444,1074.6,1073.8,4.00959]
[1610369769529,7.3527111,1074.6,1073.8,4.00959]
[1610369769927,7.36283086,1074.7,1074.1,4.00959]
[1610369770130,7.36283086,1074.7,1074.1,1.8735]
[1610369770530,7.36290508,1074.5,1074.1,1.8735]
[1610369770729,9.16820508,1074.5,1074.1,1.8735]
[1610369770930,7.34692809,1074.2,1074.1,1.8735]
[1610369771130,9.72642809,1074.2,1074.1,1.8735]
[1610369771330,11.81608915,1074.2,1073.1,52.0781]
[1610369771532,7.33930643,1074.1,1073.1,52.0781]
[1610369771730,5.87639558,1074.2,1073.1,52.0781]
[1610369771930,15.7210982,1074.7,1073.1,52.0781]
[1610369771931,11.5307928,1074.4,1074.1,4.00959]
[1610369772132,11.5307928,1074.4,1074.0,1.7902]
[1610369772331,11.53864865,1074.6,1074.0,1.7902]
[1610369772531,11.52791348,1074.5,1074.0,1.7902]
[1610369773831,11.53851965,1074.7,1074.0,1.7902]
[1610369774031,11.53851965,1074.7,1074.6,4.00959]
[1610369774232,11.54588048,1074.9,1074.6,4.00959]
[1610369774634,11.55573708,1075.0,1074.6,4.00959]
[1610369775033,11.55865131,1075.1,1074.6,5.80429]
[1610369775456,11.55630041,1075.2,1074.6,1.7947]
[1610369775648,4.00959,1075.5,1074.6,1.7947]
[1610369775649,11.54574128,1075.1,1074.6,1.7947]
[1610369776041,4.00959,1074.7,1073.1,6.31559]
[1610369776247,21.81043288,1074.7,1073.1,2.306]
[1610369776446,21.81043288,1074.7,1072.4,0.28377653]
[1610369776640,21.81043288,1074.7,1072.3,0.56755307]
[1610369776641,11.4803447,1074.2,1072.3,0.28382244]
[1610369776842,13.4877447,1074.2,1072.3,0.28382244]
[1610369777037,13.4877447,1074.2,1072.2,0.56764488]
[1610369777038,11.45388626,1073.9,1071.9,0.28388363]
[1610369777249,11.43533423,1073.6,1071.6,0.28394011]
[1610369777441,13.79983423,1073.6,1071.6,0.28394011]
[1610369777657,11.42484603,1073.4,1071.5,0.28394474]
[1610369778060,4.00959,1073.5,1073.3,4.00959]
[1610369778449,4.00959,1073.5,1072.9,1.563]
[1610369778834,5.63439,1073.5,1072.9,1.563]
[1610369779036,17.06677789,1073.5,1072.9,1.563]
[1610369779235,17.06677789,1073.5,1071.6,0.28399342]
[1610369779435,11.41471803,1073.2,1071.2,0.2840871]
[1610369779634,11.41026563,1073.1,1071.2,0.2840871]
[1610369779837,11.41026563,1073.1,1071.3,60.5482]
[1610369780035,4.00959,1072.9,1072.7,4.00959]
[1610369780236,4.00959,1072.9,1071.3,62.254]
[1610369780434,4.00959,1072.9,1071.3,62.53807764]
[1610369780936,4.00959,1072.9,1071.4,0.28409123]
[1610369781136,4.00959,1072.9,1071.3,62.53807477]
[1610369781536,4.00959,1072.9,1071.3,62.254]
[1610369781940,9.3196655,1072.8,1071.3,62.254]
[1610369782137,9.31639554,1072.7,1071.3,62.254]
[1610369782537,9.31025857,1072.6,1071.3,62.254]
[1610369782939,9.31307098,1072.8,1071.3,62.254]
[1610369783338,9.27957789,1072.5,1071.3,62.254]
[1610369783538,9.29653007,1073.1,1071.3,62.254]
[1610369783738,9.29653007,1073.1,1071.4,30.0]
[1610369783937,9.313577,1073.5,1071.6,0.28404005]
[1610369784138,9.32508692,1073.7,1073.0,4.00959]
[1610369784337,9.32508692,1073.7,1073.0,6.20749]
[1610369784539,9.32463958,1073.8,1073.0,2.1979]
[1610369784941,9.31911138,1073.7,1073.0,2.1979]
[1610369785140,9.31050615,1073.6,1073.0,2.1979]
[1610369785351,9.31050615,1073.6,1072.6,1.9445]
[1610369785352,11.31770615,1073.6,1072.6,1.9445]
[1610369785539,7.4836,1072.9,1072.8,0.1998]
[1610369785740,2.0072,1073.6,1072.8,0.1998]
[1610369785940,11.65583544,1073.9,1072.8,0.1998]
[1610369786139,11.65583544,1073.9,1073.5,4.00959]
[1610369786340,9.32143544,1073.9,1073.5,4.00959]
[1610369786539,2.07237649,1073.7,1073.5,4.00959]
[1610369786939,2.07696816,1073.9,1073.5,4.00959]
[1610369787340,7.86288741,1074.0,1073.5,6.15969]
[1610369787541,5.7857,1074.0,1073.5,6.15969]
[1610369788540,5.7857,1074.0,1073.5,2.1501]
[1610369788741,9.42300676,1074.0,1073.5,2.1501]
[1610369789142,3.63603886,1073.9,1073.5,2.1501]
[1610369789341,9.42418781,1074.0,1073.5,2.1501]
[1610369789740,5.7857,1074.0,1073.5,2.1501]
[1610369790845,3.64309276,1073.9,1073.2,1.5774]
[1610369791244,3.63976175,1073.6,1073.2,1.5774]
[1610369791444,3.63943301,1073.5,1072.9,64.432]
[1610369791844,3.63753923,1073.2,1072.9,64.432]
[1610369792045,4.00959,1073.0,1072.9,64.432]
[1610369792246,3.63745296,1073.0,1072.9,64.432]
[1610369792649,3.64038696,1073.2,1072.9,64.432]
[1610369792848,3.64424062,1073.4,1072.9,66.3605]
[1610369793250,3.64662322,1073.5,1072.9,66.3605]
[1610369793650,3.64289496,1073.4,1072.9,66.3605]
[1610369794050,4.00959,1073.0,1072.9,66.3605]
[1610369794652,4.00959,1073.0,1072.9,64.432]
[1610369794954,11.26425538,1073.0,1072.9,64.432]
[1610369795552,13.32678943,1073.0,1072.9,64.432]
[1610369795752,15.39183355,1073.0,1072.9,64.432]
[1610369796352,7.23909268,1073.0,1072.9,64.432]
[1610369796751,3.62450919,1073.0,1072.9,64.432]
[1610369797352,8.79622853,1073.0,1072.9,64.432]
[1610369797552,5.17171934,1073.0,1072.9,64.432]
[1610369798052,7.63580487,1073.0,1072.9,64.432]
[1610369798454,9.19264205,1073.0,1072.9,64.432]
[1610369798653,9.19264205,1073.0,1072.8,0.1998]
[1610369799256,5.94920165,1073.0,1072.8,0.1998]
[1610369799455,3.63400154,1072.9,1072.8,0.1998]
[1610369799754,4.41055956,1073.0,1072.8,0.1998]
[1610369800755,3.64670123,1072.9,1072.8,0.1998]
[1610369801158,7.28610744,1072.9,1072.8,0.1998]
[1610369801356,9.04400744,1072.9,1072.8,0.1998]
[1610369801958,1.7579,1072.9,1072.8,0.1998]
[1610369802163,15.28048992,1072.9,1072.8,0.1998]
[1610369802361,15.28048992,1072.9,1071.8,0.6]
[1610369802563,1.7579,1072.9,1071.8,0.6]
[1610369802963,7.27142624,1071.9,1071.8,0.6]
[1610369803157,13.6098285,1071.9,1071.8,0.6]
[1610369803756,2.1992,1071.9,1071.8,0.6]
[1610369804156,19.67451173,1071.9,1069.7,0.28449291]
[1610369804356,3.62563888,1071.1,1069.6,4.00959]
[1610369804557,5.76353888,1071.1,1069.5,0.28452492]
[1610369804757,3.62136075,1071.0,1069.4,0.28436455]
[1610369805158,3.61816143,1070.6,1069.1,0.28460799]
[1610369805357,5.54286143,1070.6,1069.6,1.42296552]
[1610369805560,3.61433438,1070.4,1069.6,1.42296552]
[1610369805857,3.61261708,1070.3,1069.6,1.42296552]
[1610369806057,4.00959,1069.7,1069.6,1.42296552]
[1610369806657,4.00959,1069.7,1069.0,2.1825]
[1610369808058,4.00959,1069.1,1068.3,0.28476533]
[1610369808259,4.00959,1069.1,1068.2,0.2848144]
[1610369808457,5.74419,1069.1,1068.2,0.2848144]
[1610369808658,5.74419,1069.1,1068.0,0.28485532]
[1610369809061,5.74419,1069.1,1067.8,0.28495527]
[1610369809260,5.74419,1069.1,1067.6,68.01201816]
[1610369809662,3.60379106,1069.0,1067.6,67.727]
[1610369810062,3.61153534,1069.4,1068.9,4.00959]
[1610369810461,3.61531875,1069.6,1068.8,1.5296]
[1610369811061,3.70954524,1069.1,1068.8,1.5296]
[1610369811261,5.64244524,1069.1,1068.8,1.5296]
[1610369811461,5.64244524,1069.1,1067.6,68.01201487]
[1610369811662,3.70714098,1068.9,1067.6,67.727]
[1610369812062,3.70714098,1068.9,1068.4,4.00959]
[1610369812462,3.7064686,1069.0,1068.4,4.00959]
[1610369812663,1.9329,1069.1,1068.4,4.00959]
[1610369812862,3.70904906,1069.2,1068.4,5.65739]
[1610369813063,3.71063628,1069.3,1068.4,5.65739]
[1610369813363,3.71258774,1069.4,1068.4,5.65739]
[1610369813662,3.71056581,1069.3,1068.4,5.65739]
[1610369813862,5.47746581,1069.3,1068.4,5.65739]
[1610369814069,4.00959,1068.5,1067.9,2.22582342]
[1610369814263,6.27499,1068.5,1067.9,0.28492342]
[1610369814463,6.27499,1068.5,1067.6,67.727]
[1610369815562,6.27499,1068.5,1067.1,0.2851066]
[1610369815764,6.27499,1068.5,1067.2,0.28512187]
[1610369815965,6.27499,1068.5,1067.1,0.57024373]
[1610369816165,4.00959,1067.2,1067.0,0.28518194]
[1610369816365,4.00959,1067.2,1066.7,0.28524899]
[1610369816765,4.00959,1067.2,1066.6,4.2948774]
[1610369817170,4.00959,1067.2,1066.6,4.00959]
[1610369817569,2.2623,1067.4,1066.6,4.00959]
[1610369817969,2.2623,1067.4,1066.6,4.29488304]
[1610369818175,2.2623,1067.4,1067.3,4.00959]
[1610369818372,4.00959,1067.8,1066.9,2.0001]
[1610369819371,1.63383537,1067.6,1066.2,0.28541466]
[1610369819573,1.63293908,1067.5,1066.0,0.28544564]
[1610369819972,3.67225203,1067.3,1065.9,67.9613]
[1610369820173,4.00959,1066.0,1065.9,67.9613]
[1610369821272,1.7771,1066.4,1065.9,67.9613]
[1610369822074,1.7771,1066.4,1066.0,4.00959]
[1610369822673,2.85988833,1067.2,1066.0,4.00959]
[1610369823300,2.475,1067.3,1066.0,4.29512684]
[1610369823701,5.8531,1067.6,1066.4,0.28543384]
[1610369823883,5.8531,1067.6,1066.4,2.30603384]
[1610369824082,5.8531,1067.6,1067.5,4.00959]
[1610369824294,5.8531,1067.6,1067.5,5.58529]
[1610369824879,8.8664,1068.4,1067.5,5.58529]
[1610369825281,8.8664,1068.4,1067.7,0.28514348]
[1610369825680,8.8664,1068.4,1068.0,0.28506264]
[1610369825880,69.0611,1068.5,1068.0,0.28506264]
[1610369826081,169.84198104,1070.4,1068.0,0.28506264]
[1610369826082,4.93739004,1069.8,1068.4,4.00959]
[1610369826284,4.93739004,1069.8,1068.4,6.04939]
[1610369826483,3.69706432,1069.9,1068.4,6.33435703]
[1610369826886,3.69478708,1069.8,1068.4,6.04939]
[1610369827087,1.64135216,1069.6,1068.4,6.04939]
[1610369828191,4.00959,1069.3,1068.6,4.00959]
[1610369828393,6.01889,1069.3,1068.6,4.00959]
[1610369828593,2.0093,1069.3,1068.6,4.00959]
[1610369829392,5.83604031,1069.8,1068.6,4.00959]
[1610369829609,2.1396,1069.8,1068.6,6.42789]
[1610369830004,2.1396,1069.8,1068.7,0.28489861]
[1610369830194,2.1396,1069.8,1069.7,4.00959]
[1610369830694,3.70510212,1070.1,1069.7,4.00959]
[1610369831093,3.69861253,1070.3,1069.4,2.3695]
[1610369831296,3.69365554,1070.2,1068.9,2.2033]
[1610369831492,5.30255554,1070.2,1068.9,2.2033]
[1610369831694,3.68636602,1069.9,1068.9,2.2033]
[1610369831893,6.01966602,1069.9,1068.9,2.2033]
[1610369832094,1.63566148,1069.5,1068.9,2.2033]
[1610369832293,1.63566148,1069.5,1068.4,4.00959]
[1610369832294,4.00959,1069.0,1068.4,4.00959]
[1610369832493,6.48159,1069.0,1068.4,4.00959]
[1610369832695,2.472,1069.0,1068.4,4.00959]
[1610369833093,2.472,1069.0,1068.1,62.8108]
[1610369833613,4.09993822,1069.0,1068.1,62.8108]
[1610369834094,4.00959,1068.2,1068.1,54.7355]
[1610369834294,4.00959,1068.2,1066.9,0.28525201]
[1610369834295,5.95729,1068.2,1066.9,0.28525201]
[1610369834694,5.95729,1068.2,1066.6,0.85575602]
[1610369834695,7.57746102,1068.2,1066.7,0.28533059]
[1610369835095,1.61847007,1068.0,1066.6,0.28536439]
[1610369835294,1.61847007,1068.0,1066.5,0.57072879]
[1610369835295,1.61595982,1067.7,1066.5,0.57072879]
[1610369835495,3.40655982,1067.7,1066.2,0.28546339]
[1610369835696,1.61401474,1067.5,1066.0,0.28552882]
[1610369836095,5.62295206,1067.4,1066.5,4.00959]
[1610369836295,4.00959,1067.4,1066.5,4.00959]
[1610369836497,6.02219,1067.4,1066.1,0.28551616]
[1610369836698,6.02219,1067.4,1066.0,0.28553672]
[1610369837196,1.61326609,1067.3,1065.8,65.44956541]
[1610369837597,1.61143793,1067.2,1065.8,65.164]
[1610369837799,7.63546417,1067.4,1065.9,0.28554113]
[1610369838200,4.00959,1066.8,1066.4,4.00959]
[1610369838397,5.54699,1066.8,1066.4,4.00959]
[1610369838600,1.5374,1066.8,1066.4,4.00959]
[1610369839398,1.61300882,1067.6,1066.4,4.00959]
[1610369839600,1.61899168,1067.9,1066.5,0.28541924]
[1610369840000,5.51790365,1068.2,1066.7,0.28533931]
[1610369840001,3.59215419,1068.2,1066.7,0.28533931]
[1610369840201,1.62415694,1068.1,1067.8,4.00959]
[1610369840602,6.03978618,1068.2,1066.8,0.28531011]
[1610369840603,4.00959,1068.2,1066.8,0.28531011]
[1610369840803,3.65940823,1068.3,1066.8,0.28531011]
[1610369841003,3.65940823,1068.3,1066.7,2.40702022]
[1610369841004,1.62598747,1068.2,1066.7,2.12170112]
[1610369841204,1.6269787,1068.3,1066.8,0.28524541]
[1610369841605,1.6269787,1068.3,1066.9,0.28527739]
[1610369841804,1.6269787,1068.3,1066.8,1.71103243]
[1610369841805,1.62827621,1068.2,1066.8,1.71103243]
[1610369842005,4.01077621,1068.2,1066.8,1.71103243]
[1610369842205,1.62646926,1068.1,1068.0,4.00959]
[1610369842613,2.3825,1068.2,1068.0,4.00959]
[1610369842805,2.3825,1068.2,1067.4,1.8027]
[1610369843708,1.61697689,1068.0,1066.5,0.28533933]
[1610369843912,2.01887894,1067.9,1066.4,1.8175]
[1610369844110,1.61510315,1067.8,1066.4,1.8175]
[1610369844308,1.61362437,1067.7,1067.4,4.00959]
[1610369844709,5.34074588,1067.9,1067.4,4.00959]
[1610369844710,1.8059,1067.9,1067.4,4.00959]
[1610369845008,1.8059,1067.9,1067.4,5.56079]
[1610369845207,1.61887092,1068.4,1067.4,5.56079]
[1610369845407,1.8172,1068.5,1067.4,5.56079]
[1610369845607,1.6197752,1068.5,1067.4,5.56079]
[1610369846007,1.61868628,1068.4,1067.4,4.00959]
[1610369846208,3.71078628,1068.4,1067.9,4.00959]
[1610369846409,2.0921,1068.4,1067.9,4.00959]
[1610369847411,2.0921,1068.4,1067.4,2.2996]
[1610369848211,4.00959,1068.1,1067.4,2.2996]
[1610369848813,5.64689,1068.1,1067.5,1.42598129]
[1610369849011,1.6373,1068.1,1067.5,1.42598129]
[1610369849213,1.6373,1068.1,1067.5,3.75678129]
[1610369849813,1.62059362,1068.6,1067.5,3.75678129]
[1610369850215,61.07834202,1068.7,1067.5,3.75678129]
[1610369850216,59.0526,1068.7,1068.5,4.00959]
[1610369850615,5.9688,1068.9,1068.5,4.00959]
[1610369851015,5.9688,1068.9,1068.5,6.44639]
[1610369852017,1.62833387,1069.7,1068.5,6.44639]
[1610369852216,1.62833387,1069.7,1069.6,4.00959]
[1610369852416,1.63117771,1070.0,1069.6,5.76389]
[1610369852817,2.04255233,1070.4,1069.6,5.76389]
[1610369853017,57.91299617,1070.6,1069.6,5.76389]
[1610369853419,54.3285,1070.6,1069.6,5.76389]
[1610369854219,54.3285,1070.6,1070.5,4.00959]
[1610369855032,3.59406744,1071.0,1070.5,4.00959]
[1610369855226,3.59334748,1070.9,1070.5,4.00959]
[1610369855620,3.59671462,1071.0,1070.5,4.00959]
[1610369856053,3.59815329,1071.1,1069.9,2.3792]
[1610369856242,4.00959,1070.3,1069.9,2.3792]
[1610369856628,6.37109,1070.3,1069.0,59.5579]
[1610369857024,3.58250241,1070.0,1069.0,59.5579]
[1610369857229,5.27900241,1070.0,1069.0,59.5579]
[1610369857426,3.57965329,1069.8,1069.0,59.5579]
[1610369857628,3.57473668,1069.7,1069.0,59.5579]
[1610369857825,5.65183668,1069.7,1069.0,59.5579]
[1610369858024,3.56936449,1069.6,1069.0,59.5579]
[1610369858225,4.00959,1069.1,1069.0,59.5579]
[1610369858429,5.50959,1069.1,1069.0,59.5579]
[1610369858925,9.06589398,1069.1,1069.0,59.5579]
[1610369859124,9.06589398,1069.1,1067.4,0.28496485]
[1610369859332,5.50959,1069.1,1065.9,1.95288758]
[1610369859527,2.0195151,1068.3,1066.3,1.4257023]
[1610369859724,4.1515151,1068.3,1066.3,1.4257023]